Cogmind - Beta 11 @@@ ROGUE MODE // 2022.03.23 @ 19:58:48 Player: Photonicus Result: Destroyed by G-34 Mercenary with Small Laser Performance ------------- Evolutions (0) 0 Regions Visited (1) 200 Robots Destroyed (12) 60 Value Destroyed (150) 150 Prototype IDs (0) 0 Alien Tech Used (0) 0 Bonus (0) 0 TOTAL SCORE: 410 Bonus ------- None Cogmind --------- Core Integrity 0/250 Matter 270/300 Energy 61/100 System Corruption 0% Temperature Cool (7) Movement Walking (120) Location -10/Materials Parts ------- > --- POWER (1) -------- (None) > --- PROPULSION (2) --- Aluminum Leg > --- UTILITY (2) ------ Small Storage Unit > --- WEAPON (2) ------- Small Laser Small Laser > --- INVENTORY (8) ---- Ion Engine Peak State ------------ > --- POWER ------------ Ion Engine > --- PROPULSION ------- Aluminum Leg Aluminum Leg > --- UTILITY ---------- Small Storage Unit Seismic Detector > --- WEAPON ----------- Medium Laser Small Laser > --- INVENTORY -------- Ion Engine [Rating: 7] Favorites ----------- Power Ion Engine Engine Ion Engine Propulsion Aluminum Leg Leg Aluminum Leg Utility Small Storage Unit Device Seismic Detector Storage Small Storage Unit Weapon Small Laser Energy Gun Small Laser Build | -11 -10 ------- Run | Scr Mat Slots Evolved . | . . Power . | . . Propulsion . | . . Utility . | . . Weapon . | . . Parts Attached 10 | 7 3 Power 1 | 1 . Engine 1 | 1 . Core . | . . Reactor . | . . Propulsion 3 | 2 1 Treads . | . . Leg 3 | 2 1 Wheel . | . . Hover . | . . Flight . | . . Utility 2 | 2 . Device 1 | 1 . Storage 1 | 1 . Processor . | . . Hackware . | . . Protection . | . . Artifact . | . . Weapon 4 | 2 2 Energy Gun 4 | 2 2 Energy Cannon . | . . Ballistic Gun . | . . Ballistic Cannon . | . . Launcher . | . . Special Weapon . | . . Impact Weapon . | . . Slashing Weapon . | . . Piercing Weapon . | . . Special Melee Weapon . | . . Unidentified Prototypes . | . . Parts Lost 6 | . 6 Power 1 | . 1 Propulsion 2 | . 2 Utility 1 | . 1 Weapon 2 | . 2 Highest Loss Streak 5 | . 5 To Critical Strikes . | . . Average Slot Usage (%) 89 | . 89 Engine 10 | . 10 Leg 25 | . 25 Device 12 | . 12 Storage 14 | . 14 Energy Gun 26 | . 26 Naked Turns . | . . Heaviest Build 14 | 14 14 Greatest Support 20 | 20 20 Greatest Overweight (x) 1 | . 1 Average Overweight (x) . | . . Largest Inventory Capacity 8 | 8 8 Average Capacity 7 | 7 8 Most Carried 1 | 1 1 Average Carried . | . 1 Final Capacity 8 | 8 8 Final Carried 1 | 1 1 Class Distribution -------------------- 100% | Mutant Dominant Class ---------------- Mutant | -10/Materials Resources | -11 -10 ----------- Run | Scr Mat Matter Collected 265 | 226 39 Remotely . | . . Salvage Created 352 | 174 178 Parts 16 | 9 7 Haulers Intercepted . | . . Recyclers Shooed . | . . Parts Field Recycled . | . . Retrieved Matter . | . . Parts Self-Destructed . | . . Prevented . | . . Kills | -11 -10 ------- Run | Scr Mat Combat Hostiles Destroyed 5 | . 5 Guns 4 | . 4 Classes Destroyed 6 | 3 3 Worker 3 | 2 1 Tunneler 2 | 2 . Recycler 1 | 1 . Watcher 1 | . 1 Swarmer 3 | . 3 Grunt 2 | . 2 Best Kill Streak 3 | 2 3 Combat Bots Only 3 | . 3 Max Kills in Single Turn 1 | 1 1 Gunslinging . | . . Exploded . | . . Melee . | . . Uniques/NPCs Destroyed . | . . Combat | -11 -10 -------- Run | Scr Mat Damage Taken 780 | . 780 Core 250 | . 250 Absorbed by Shields . | . . Core Remaining (%) 100 | 100 . Volleys Fired 66 | 24 42 Largest 2 | 2 2 Hottest 90 | 90 90 Shots Fired 112 | 48 64 Gun 112 | 48 64 Cannon . | . . Launcher . | . . Special . | . . Kinetic . | . . Thermal 112 | 48 64 Explosive . | . . Electromagnetic . | . . Robot Hit Streak 8 | 6 8 Robot Miss Streak 6 | 3 6 Penetration Max . | . . Secondary Targets . | . . Shots Hit Robots 67 | 31 36 Core Hits 18 | 6 12 Critical Kills . | . . Critical Parts Destroyed . | . . Critical Strikes 4 | 3 1 Burn 4 | 3 1 Melee Attacks . | . . Impact . | . . Slashing . | . . Piercing . | . . Sneak Attacks . | . . Combat Hostiles . | . . Follow-up Attacks . | . . Damage Inflicted 780 | 360 420 Guns 776 | 360 416 Cannons . | . . Explosions . | . . Melee . | . . Ramming 4 | . 4 Kinetic . | . . Thermal 776 | 360 416 Explosive . | . . Electromagnetic . | . . Impact . | . . Slashing . | . . Piercing . | . . Highest Corruption . | . . Average Corruption . | . . Corruption Purged . | . . Corruption Blocked . | . . Overload Shots . | . . Overflow Damage . | . . Projectiles . | . . Explosions . | . . Melee . | . . Knockbacks . | . . Impact . | . . Kinetic . | . . Secondary . | . . Self-Inflicted Damage 2 | . 2 Shots . | . . Rammed 2 | . 2 Targets Rammed 2 | . 2 Kicked . | . . Crushed . | . . Highest Temperature 327 | 202 327 Average Temperature 85 | 87 84 Received Heat Transfer 417 | . 417 Effects 3 | . 3 Interference 3 | . 3 Siege Activations . | . . Robots Corrupted . | . . Combat Hostiles . | . . Parts Fried . | . . Impact Corruptions . | . . Robots Melted 1 | . 1 Combat Hostiles 1 | . 1 Parts Melted 3 | . 3 Heat Transferred 2248 | 1153 1095 Parts Sabotaged . | . . Parts Stolen . | . . Parts Stripped . | . . Power Chain Reactions . | . . Missiles Intercepted . | . . Alert | -11 -10 ------- Run | Scr Mat Peak Influence 178 | 25 178 Initial 16 | . 16 Average 49 | 9 78 Maximum Alert Level . | . . Low Security (%) 100 | 100 100 Level 1 . | . . Level 2 . | . . Level 3 . | . . Level 4 . | . . Level 5 . | . . High Security . | . . Max Security . | . . Squads Dispatched 1 | . 1 Investigation 1 | . 1 Extermination . | . . Reinforcement . | . . Assault . | . . Garrison . | . . Intercept . | . . Searches Triggered . | . . Construction Impeded . | . . Haulers Reinforced . | . . Active Scanning Responses . | . . Cargo Convoy Interrupts . | . . Stealth | -11 -10 --------- Run | Scr Mat Distress Signals 2 | . 2 Communications Jammed . | . . Distress Signals . | . . Times Spotted 12 | . 12 Peak Tracking Total 4 | . 4 Tactical Retreats 1 | . 1 Traps | -11 -10 ------- Run | Scr Mat Traps Triggered . | . . Indirectly . | . . Trap Hack Attempts . | . . Triggered . | . . Disarmed . | . . Reprogrammed . | . . Reused . | . . Traps Extracted . | . . Installed . | . . Triggered . | . . Machines | -11 -10 ---------- Run | Scr Mat Machines Disabled . | . . Max in Single Turn . | . . Machines Sabotaged . | . . Garrisons Compromised . | . . Overloaded Fab Kills . | . . Hacking | -11 -10 --------- Run | Scr Mat Machines Accessed 1 | . 1 Terminals 1 | . 1 Fabricators . | . . Repair Stations . | . . Recycling Units . | . . Scanalyzers . | . . Garrison Access . | . . Total Hacks 4 | . 4 Successful 4 | . 4 Failed . | . . Catastrophic . | . . Database Lockouts . | . . Manual . | . . Terminals 4 | . 4 Fabricators . | . . Repair Stations . | . . Recycling Units . | . . Scanalyzers . | . . Garrison Access . | . . Terminal Hacks 4 | . 4 Record 3 | . 3 Maintenance Status 1 | . 1 Fabricator Hacks . | . . Repair Station Hacks . | . . Recycling Unit Hacks . | . . Scanalyzer . | . . Garrison Access Hacks . | . . Unauthorized Hacks . | . . Terminals . | . . Fabricators . | . . Repair Stations . | . . Recycling Units . | . . Scanalyzers . | . . Garrison Access . | . . Data Cores Recovered . | . . Used . | . . Hacking Detections 1 | . 1 Full Trace Events 1 | . 1 Feedback Events . | . . Feedback Blocked . | . . Robot Schematics Acquired . | . . Robots Built . | . . Authchips . | . . Time . | . . Total Robot Build Rating . | . . Part Schematics Acquired . | . . Parts Built . | . . Authchips . | . . Time . | . . Total Part Build Rating . | . . Parts Repaired . | . . Time . | . . Parts Recycled . | . . Recycled Matter . | . . Retrieved Matter . | . . Retrieved Components . | . . Parts Scanalyzed . | . . Part Schematics Acquired . | . . Parts Damaged . | . . Bothacking | -11 -10 ------------ Run | Scr Mat Used RIF Installer . | . . Robots Hacked . | . . Non-combat . | . . Combat . | . . Robot Hacks Applied . | . . Relay Couplers Released . | . . Fabnet Peak Effective % . | . . Robots Rewired . | . . Allies Hacked . | . . Hacks Repelled . | . . Allies | -11 -10 -------- Run | Scr Mat Total Allies . | . . Largest Group . | . . Highest-Rated Group . | . . Highest-Rated Ally . | . . Total Orders . | . . Ally Attacks . | . . Total Damage . | . . Kills . | . . Allies Corrupted . | . . Allies Melted . | . . Intel | -11 -10 ------- Run | Scr Mat Robot Analysis Total . | . . Derelict Logs Recovered . | . . Drone Launches . | . . Drone Recoveries . | . . Exploration | -11 -10 ------------- Run | Scr Mat Turns Passed 543 | 229 314 Spaces Moved 279 | 124 155 Core 11 | 4 7 Treads . | . . Legs 268 | 120 148 Wheels . | . . Hover . | . . Flight . | . . Fastest Speed 50 | 50 100 Average Speed 118 | 117 119 Slowest Speed 120 | 120 120 Overloaded Moves . | . . Propulsion Burnouts . | . . Robots Hopped . | . . Cave-ins Triggered . | . . Exploration Rate (%) 17 | 10 24 Regions Visited 1 Branch Regions . Pre-discovered Areas . | . . Known Exits Taken . | . . Unknown Exits Taken 1 | 1 . Scrap Searched . | . . Spaces Dug . | . . Terrain Destroyed . | . . Melee . | . . Projectile . | . . AOE . | . . Terrain Rammed . | . . Walls Destroyed . | . . Machines Disabled . | . . Actions | -11 -10 --------- Run | Scr Mat Total 375 | 155 220 Wait 18 | . 18 Move 278 | 123 155 Hop . | . . Pick Up 1 | 1 . Fast Attach 10 | 7 3 Attach . | . . Detach . | . . Swap . | . . Drop . | . . Fire 66 | 24 42 Melee . | . . Ram 2 | . 2 Kick . | . . Crush . | . . Escape Stasis . | . . Rewire . | . . Trap . | . . Miscellaneous . | . . Route ------- -11/Scrapyard -10/Materials History --------- Turn | Location | Event 30 | -11/Scrapyard | Discovered new exit (range 15) 230 | -11/Scrapyard | Entered Materials 307 | -10/Materials | Build established: Mutant 522 | -10/Materials | Core integrity fell below 50% 530 | -10/Materials | Core integrity fell below 20% 544 | -10/Materials | Destroyed by G-34 Mercenary with Small Laser Last Messages --------------- 00476_ Seismic Detector temporarily disabled. 00507_ Aluminum Leg destroyed. 00507_ Seismic Detector destroyed. 00511_ Aluminum Leg destroyed. 00515_ Med. Laser destroyed. 00515_ Critical hit (Burn: +37). 00527_ Sml. Laser destroyed. 00530_ Slammed into G-47 Trooper. 00531_ Destabilizing: Core damaged (-12). 00532_ G-47 Trooper heat spikes uncontrollably. 00533_ G-47 Trooper overheating. 00534_ G-47 Trooper heat short circuits Aluminum Leg. 00534_ G-47 Trooper overheating. 00535_ G-47 Trooper heat damages core (-9). 00535_ Lgt. Nuclear Core melted. 00535_ Aluminum Leg melted. 00535_ Broken Aluminum Leg melted. 00536_ Acquired Sml. Laser. 00538_ Acquired Aluminum Leg. 00541_ Acquired Sml. Laser. Map ----- +----------------------------------------------------+ | ???????????# # ##########????????? | | ???????????# # # #????????? | | ???????????# # # """ #????????? | | ???????????# # # """"" #????????? | | ???????????# # # """"" #????????? | | ???????????# + + """"" #????????? | | ???????????# # # """ #????????? | | ??#????????# # # #????????? | | ### ###### # # #????????? | | # # # #????????? | | + # ##########????????? | | # # #?????????????????? | | # #### ######## #?????????????????? | | ???????# ????????# #?????????????????? | | ???????# ??# ????# #?????????????????? | | ???????# ???#!! ??# #?????????????????? | | ???????# ???#!! # #?????????????????? | | ??????? ????#! + #???########??????? | | ??????# ????# #% #???# #??????? | | ??????#?????+ ??# #???# """ #??????? | | ????????????# ????# #???# "T" #??????? | | ??????????????????# ###???# #??????? | | ??????????????????# #?????# #??????? | | ???????????????#### #?????#% #??????? | | ?????????????### =[#######+##+###??????? | | ?????????????+ @ w #???????? | | ?????????????### ! % % g %#???????? | | ???????????????# ########## %#???????? | | ???????????????##+###????????# %#?######? | | ?????????????????????????????# #? #? | | ?????????????????????????????#! # !!#? | | ?????????????????????????????# !# ! #? | | ?????????????????????????????+* + #? | | ?????????????????????????????# # #? | | ?????????????????????????????# # #? | | ?????????????????????????????####?######? | | ????????????????????????????????????????? | | ????????????????????????????????????????? | | ????????????????????????????????????????? | | ????????????????????????????????????????? | | ????????????????????????????????????????? | | | | | | | | | | | | | | | | | | | +----------------------------------------------------+ Best States ------------- Heat Dissipation 25 Energy Generation 10 Energy Capacity 250 Matter Stores 300 Matter Capacity 300 Sight Range 16 Terrain Scan Density 10 Evasion (%) 55 Item Schematics ----------------- None Robot Schematics ------------------ None Fabricated ------------ Nothing Alien Tech Used ----------------- None Achievements -------------- None Challenges ------------ None Game ------ Seed ThermalClaymoresBoosters Manual? 0 Play Time 00:06:46 Cumulative 57.6 hours Start 2022.03.23 @ 19:52:28 End 2022.03.23 @ 19:58:48 Sessions 1 Manual Loads 0 Difficulty Rogue Special Mode None Game No. 32 Rogue 3 Adventurer 29 Explorer 0 Win Type - Total 1 Types 1/0/0/0/0/0/0/0/0 Lore% 11 Gallery% 35 Achievement% 29 Wizard Run 0 Options --------- ASCII 0 Keyboard 0 Movement Numpad Keybinds 0 Fullscreen 1 Font 18/SmallcapsGlow Map View 76x50 Tactical HUD 1 Map Filters NONE Filters NONE Steam 1 RUN: 5c6ac758-84cb-48da-92fe-8877047a9ab2